bitfinex/quotes_BTCUSD_20240701
["timestamp","ask_amount","ask_price","bid_price","bid_amount"]
[1719850067695,0.114,63129.0,63127.0,0.19928115]
[1719850067846,0.1,63129.0,63127.0,0.19928115]
[1719850068872,0.1,63129.0,63128.0,0.21907239]
[1719850069618,0.02743789,63129.0,63128.0,0.41907239]
[1719850069821,0.014,63129.0,63128.0,0.65141217]
[1719850071033,0.00010278,63133.0,63132.0,0.52791217]
[1719850071200,0.00010278,63133.0,63132.0,0.68631017]
[1719850071564,0.00010278,63133.0,63132.0,0.52791217]
[1719850072837,0.30010278,63133.0,63132.0,0.68631017]
[1719850074007,0.30710278,63133.0,63132.0,0.68631017]
[1719850074823,0.31310278,63133.0,63132.0,0.68631017]
[1719850077628,0.31310278,63133.0,63132.0,0.52791217]
[1719850080100,0.31394278,63133.0,63132.0,0.52791217]
[1719850081790,0.31394278,63133.0,63132.0,0.50812093]
[1719850081993,0.31394278,63133.0,63132.0,0.52791217]
[1719850082738,0.31394278,63133.0,63132.0,0.30883978]
[1719850082953,0.31394278,63133.0,63132.0,0.50812093]
[1719850083129,0.31394278,63133.0,63132.0,0.52791217]
[1719850083535,0.31394278,63133.0,63132.0,0.50812093]
[1719850084129,0.31394278,63133.0,63132.0,0.52791217]
[1719850084327,0.31394278,63133.0,63132.0,0.50812093]
[1719850084746,0.31394278,63133.0,63132.0,0.52791217]
[1719850087316,0.30081254,63133.0,63132.0,0.52791217]
[1719850089504,0.30081254,63133.0,63132.0,1.11050617]
[1719850089707,0.30081254,63133.0,63132.0,1.34220617]
[1719850089920,0.30081254,63133.0,63132.0,1.42730217]
[1719850090449,0.30081254,63133.0,63132.0,1.65900217]
[1719850090673,0.29381254,63133.0,63132.0,1.65900217]
[1719850091822,0.2879178,63133.0,63132.0,1.97579817]
[1719850092050,0.2879178,63133.0,63132.0,2.10159817]
[1719850092282,0.2889178,63133.0,63132.0,2.10559817]
[1719850092860,0.2879178,63133.0,63132.0,2.10159817]
[1719850093358,0.2879178,63133.0,63132.0,1.87589817]
[1719850093359,0.2899178,63133.0,63132.0,1.87589817]
[1719850093566,0.2899178,63133.0,63132.0,2.09759817]
[1719850093868,0.2899178,63133.0,63132.0,1.23230617]
[1719850094577,0.2899178,63133.0,63132.0,1.54910217]
[1719850095322,0.2889178,63133.0,63132.0,1.54610217]
[1719850095526,0.2889178,63133.0,63132.0,1.54510217]
[1719850095725,0.2889178,63133.0,63132.0,1.54710217]
[1719850095964,0.2899178,63133.0,63132.0,1.54710217]
[1719850096176,0.2899178,63133.0,63132.0,1.55710217]
[1719850096379,0.2899178,63133.0,63132.0,1.78880217]
[1719850098266,0.2899178,63133.0,63132.0,2.10559817]
[1719850098492,0.2899178,63133.0,63132.0,2.30559817]
[1719850098692,0.2899178,63133.0,63132.0,2.62239417]
[1719850098870,0.00841,63143.0,63142.0,1.86732317]
[1719850099072,0.00841,63143.0,63142.0,2.61576917]
[1719850100079,0.00841,63143.0,63142.0,2.41576917]
[1719850100991,0.00841,63143.0,63142.0,2.61576917]
[1719850101403,0.00941,63143.0,63142.0,2.42476917]
[1719850102296,0.01041,63143.0,63142.0,2.43876917]
[1719850102735,0.01041,63143.0,63142.0,2.12202317]
[1719850102882,0.01041,63143.0,63142.0,1.79527717]
[1719850103085,0.01041,63143.0,63142.0,1.80527717]
[1719850104015,0.00841,63143.0,63142.0,2.09902317]
[1719850104353,0.00841,63143.0,63142.0,2.09892308]
[1719850104562,0.00841,63143.0,63142.0,2.10892308]
[1719850104563,0.00941,63143.0,63142.0,2.10892308]
[1719850104738,0.00941,63143.0,63142.0,2.42566908]
[1719850104942,0.00941,63143.0,63142.0,2.62566908]
[1719850105837,0.01041,63143.0,63142.0,2.63666908]
[1719850106008,0.01041,63143.0,63142.0,2.43666908]
[1719850106739,0.01041,63143.0,63142.0,2.63666908]
[1719850107090,0.01041,63143.0,63142.0,2.65966908]
[1719850108938,0.01041,63143.0,63142.0,2.97641508]
[1719850109163,0.01041,63143.0,63142.0,3.07641508]
[1719850109912,0.01051252,63143.0,63142.0,3.07641508]
[1719850110098,0.00851252,63143.0,63142.0,3.05541508]
[1719850110329,0.00851252,63143.0,63142.0,3.06541508]
[1719850110520,0.01051252,63143.0,63142.0,3.07941508]
[1719850113007,0.01051252,63143.0,63142.0,3.27941508]
[1719850115925,0.00841,63155.0,63154.0,0.73781208]
[1719850116039,0.00841,63155.0,63154.0,1.69967208]
[1719850116242,0.00841,63155.0,63154.0,2.88143008]
[1719850117511,0.00841,63155.0,63154.0,2.89043008]
[1719850118005,0.00941,63155.0,63154.0,2.89843008]
[1719850118211,0.00941,63155.0,63154.0,2.69843008]
[1719850118715,0.00841,63155.0,63154.0,2.69043008]
[1719850118914,0.00941,63155.0,63154.0,2.89543008]
[1719850119284,0.00941,63155.0,63154.0,2.90943008]
[1719850119483,0.00941,63155.0,63154.0,2.70943008]
[1719850120612,0.00941,63155.0,63154.0,2.16474408]
[1719850120813,0.00941,63155.0,63154.0,2.05474408]
[1719850121131,0.00951583,63155.0,63154.0,1.90591308]
[1719850121774,0.00851583,63155.0,63154.0,1.89191308]
[1719850121986,0.00851583,63155.0,63154.0,1.90591308]
[1719850122565,0.00851583,63155.0,63154.0,1.89191308]
[1719850122757,0.00851583,63155.0,63154.0,1.89591308]
[1719850123175,0.00851583,63155.0,63154.0,1.90591308]
[1719850123372,0.00851583,63155.0,63154.0,1.89191308]
[1719850123902,0.00851583,63155.0,63154.0,1.88191308]
[1719850124101,0.00851583,63155.0,63154.0,1.89191308]
[1719850124333,0.00851583,63155.0,63154.0,1.58922708]
[1719850124450,0.00851583,63155.0,63154.0,1.57922708]
[1719850124650,0.00851583,63155.0,63154.0,1.58922708]
[1719850125915,0.00851583,63155.0,63154.0,1.60874376]
[1719850126123,0.00851583,63155.0,63154.0,1.80874376]
[1719850126335,0.00851583,63155.0,63154.0,2.35982976]
[1719850126722,0.00851583,63155.0,63154.0,2.67651576]
[1719850126903,0.00851583,63155.0,63154.0,2.77651576]
[1719850127108,0.00851583,63155.0,63154.0,2.79951576]
[1719850127785,0.00851583,63155.0,63154.0,2.56781576]
[1719850128038,0.00851583,63155.0,63154.0,2.79951576]
[1719850129237,0.00851583,63155.0,63154.0,2.59951576]
[1719850129426,0.00851583,63155.0,63154.0,2.79951576]
[1719850129850,0.00851583,63155.0,63154.0,2.78551576]
[1719850130072,0.00851583,63155.0,63154.0,2.58551576]
[1719850130273,0.00851583,63155.0,63154.0,2.78551576]
[1719850130439,0.00851583,63155.0,63154.0,2.79951576]
[1719850130972,0.00851583,63155.0,63154.0,2.79931576]
[1719850131898,0.00851583,63155.0,63154.0,2.99931576]
[1719850132224,0.00851583,63155.0,63154.0,3.44761071]
[1719850132434,0.00842,63164.0,63163.0,2.04406506]
[1719850132631,0.00842,63164.0,63163.0,2.6668873]
[1719850132855,0.00842,63164.0,63163.0,2.77572708]
[1719850133772,0.00842,63164.0,63163.0,2.78672708]
[1719850133979,0.00842,63164.0,63163.0,2.79972708]
[1719850134440,0.00842,63164.0,63163.0,2.82272708]
[1719850134755,0.00842,63164.0,63163.0,2.82262032]
[1719850135195,0.0084,63195.0,63184.0,0.53770532]
[1719850135196,0.2362,63191.0,63184.0,0.53770532]
[1719850135321,0.2362,63191.0,63190.0,0.2189723]
[1719850135529,0.2362,63191.0,63190.0,0.68595732]
[1719850136343,0.2362,63191.0,63190.0,1.00246232]
[1719850136969,0.2362,63191.0,63190.0,1.32896732]
[1719850137171,0.2362,63191.0,63190.0,1.56046732]
[1719850137372,0.2362,63191.0,63190.0,1.23396232]
[1719850138189,0.4831,63195.0,63194.0,0.84419032]
[1719850138500,0.4831,63195.0,63194.0,1.32891732]
[1719850138635,0.4831,63195.0,63194.0,1.64540232]
[1719850138832,0.0084,63195.0,63194.0,1.64540232]
[1719850139033,0.0084,63195.0,63194.0,1.96188732]
[1719850139034,0.00523822,63195.0,63194.0,1.96188732]
[1719850139244,0.00523822,63195.0,63194.0,2.12071832]
[1719850139582,0.00523822,63195.0,63194.0,2.42171832]
[1719850139757,0.00523822,63195.0,63194.0,2.54441832]
[1719850139955,0.00084,63196.0,63195.0,2.04538532]
[1719850140156,0.00084,63196.0,63195.0,2.71636532]
[1719850141194,0.00084,63196.0,63195.0,2.06186532]
[1719850141400,0.00084,63196.0,63195.0,1.89088532]
[1719850141828,0.00084,63196.0,63195.0,1.87688532]
[1719850142029,0.00084,63196.0,63195.0,1.89088532]
[1719850142257,0.00084,63196.0,63195.0,1.89286344]
[1719850142608,0.00084,63196.0,63195.0,2.19534344]
[1719850142765,0.00084,63196.0,63195.0,2.20934344]
[1719850142968,0.00084,63196.0,63195.0,2.20726106]
[1719850143147,0.00084,63196.0,63195.0,2.21042606]
[1719850143521,0.00084,63196.0,63195.0,2.67012606]
[1719850143669,0.00084,63196.0,63195.0,3.68660606]
[1719850143873,0.00084,63199.0,63195.0,3.68660606]
[1719850143874,0.00084,63199.0,63196.0,2.16173806]
[1719850144072,0.00084,63199.0,63196.0,2.80121306]
[1719850144649,0.00084,63199.0,63196.0,2.28473806]
[1719850144848,0.00084,63199.0,63196.0,2.28790306]
[1719850145067,0.00084,63199.0,63196.0,2.28988103]
[1719850145486,0.00084,63199.0,63196.0,2.30388103]
[1719850145690,0.00084,63199.0,63196.0,2.10388103]
[1719850145997,0.00084,63199.0,63196.0,2.30388103]
[1719850146214,0.00084,63199.0,63196.0,2.62035603]
[1719850146358,0.00084,63199.0,63196.0,2.60635603]
[1719850147179,0.00084,63199.0,63196.0,2.60437806]
[1719850147592,0.00084,63199.0,63198.0,2.87815806]
[1719850147792,0.00084,63199.0,63198.0,3.54732306]
[1719850148019,0.00841,63219.0,63206.0,2.07478806]
[1719850148251,0.00841,63219.0,63218.0,0.89351704]
[1719850148452,0.00841,63219.0,63218.0,1.76743254]
[1719850148701,0.00841,63219.0,63218.0,1.86627232]
[1719850149005,0.00841,63219.0,63218.0,1.87627232]
[1719850149367,0.00841,63219.0,63218.0,2.19263732]
[1719850149546,0.00841,63219.0,63218.0,2.94070232]
[1719850149746,0.00841,63228.0,63227.0,1.84461532]
[1719850149952,0.00841,63228.0,63227.0,2.80166632]
[1719850150390,0.00841,63228.0,63227.0,3.31798632]
[1719850150529,0.00084,63238.0,63227.0,3.31798632]
[1719850150530,0.00084,63238.0,63237.0,1.64444032]
[1719850150731,0.00084,63238.0,63237.0,2.55104132]
[1719850151108,0.00084,63238.0,63237.0,2.45104132]
[1719850151311,0.00084,63238.0,63237.0,2.65104132]
[1719850151474,0.00084,63238.0,63237.0,2.13477132]
[1719850152097,0.00084,63238.0,63237.0,1.16073132]
[1719850152260,0.00084,63238.0,63237.0,0.68632632]
[1719850152653,0.00841968,63238.0,63237.0,0.50801417]
[1719850152840,0.00841968,63238.0,63237.0,0.52201417]
[1719850152841,0.00084,63238.0,63237.0,0.52201417]
[1719850153584,0.00084,63238.0,63237.0,0.52190472]
[1719850153784,0.00084,63238.0,63237.0,0.52388266]
[1719850153979,0.00084,63238.0,63237.0,0.50988266]
[1719850154405,0.00084,63238.0,63237.0,0.53252851]
[1719850154610,0.00084,63238.0,63237.0,0.68868557]
[1719850154770,0.00084,63238.0,63237.0,1.64749557]
[1719850154971,0.00084,63238.0,63237.0,1.87899557]
[1719850155371,0.00084,63238.0,63237.0,1.87839557]
[1719850155789,0.00084,63238.0,63237.0,1.97829557]
[1719850155994,0.00084,63238.0,63237.0,1.97513087]
[1719850156355,0.00084,63238.0,63237.0,1.97613087]
[1719850156599,0.00084,63238.0,63237.0,2.49240087]
[1719850156764,0.00084,63238.0,63237.0,2.29240087]
[1719850157020,0.00084,63238.0,63237.0,2.49240087]
[1719850157239,0.00084,63238.0,63237.0,2.49129717]
[1719850157654,0.00084,63238.0,63237.0,2.51529717]
[1719850157801,0.00084,63238.0,63237.0,2.31529717]
[1719850158006,0.00084,63238.0,63237.0,2.30129717]
[1719850158206,0.00084,63238.0,63237.0,2.51229717]
[1719850158615,0.00084,63238.0,63237.0,2.53529717]
[1719850158813,0.00084,63238.0,63237.0,2.33529717]
[1719850159035,0.00084,63238.0,63237.0,2.53529717]
[1719850159803,0.00084,63238.0,63237.0,2.52429717]
[1719850159997,0.00084,63238.0,63237.0,2.32429717]
[1719850160214,0.00084,63238.0,63237.0,2.32419604]
[1719850160625,0.00084,63238.0,63237.0,2.31419604]
[1719850161259,0.00841,63255.0,63254.0,1.63382804]
[1719850161471,0.00841,63255.0,63254.0,1.70737404]
[1719850161935,0.23761,63255.0,63254.0,0.66653089]
[1719850162078,0.24523291,63255.0,63254.0,0.52718104]
[1719850162683,0.24523291,63255.0,63254.0,0.5270791]
[1719850162886,0.23761,63255.0,63254.0,0.51859795]
[1719850163112,0.24523291,63255.0,63254.0,0.51859795]
[1719850163356,0.24523291,63255.0,63254.0,0.31060773]
[1719850163555,0.24523291,63255.0,63254.0,0.31460773]
[1719850163795,0.24523291,63255.0,63254.0,0.31777038]
[1719850163995,0.24523291,63255.0,63254.0,0.52373725]
[1719850164160,0.24523291,63255.0,63254.0,0.54124175]
[1719850164361,0.24523291,63255.0,63254.0,0.31579373]
[1719850164539,0.24523291,63255.0,63254.0,0.31779373]
[1719850164739,0.23761,63255.0,63254.0,0.11790049]
[1719850164940,0.24502458,63255.0,63254.0,0.11473784]
[1719850166703,0.24502458,63255.0,63254.0,0.5280791]
[1719850166893,0.23761,63255.0,63254.0,0.50859795]
[1719850167481,0.24504881,63255.0,63254.0,0.50859795]
[1719850168055,0.24514967,63255.0,63254.0,0.50859795]
[1719850168297,0.01594967,63255.0,63254.0,0.6861711]
[1719850168463,0.01594967,63255.0,63254.0,1.3185411]
[1719850168643,0.00851086,63255.0,63254.0,1.6447261]
[1719850169302,0.00851086,63255.0,63254.0,0.6861711]
[1719850169471,0.00851086,63255.0,63254.0,1.0023561]
[1719850169676,0.00851086,63255.0,63254.0,1.3185411]
[1719850170072,0.00851086,63255.0,63254.0,1.6447261]
[1719850170503,0.00851086,63255.0,63254.0,1.6667261]
[1719850170978,0.00851086,63255.0,63254.0,1.6607261]
[1719850171442,0.00851086,63255.0,63254.0,1.6677261]
[1719850171828,0.00851086,63255.0,63254.0,1.6507261]
[1719850172086,0.00851086,63255.0,63254.0,0.5440791]
[1719850172469,0.00851086,63255.0,63254.0,0.5270791]
[1719850172669,0.00851086,63255.0,63254.0,1.0153561]
[1719850173296,0.00851086,63255.0,63254.0,1.3315411]
[1719850173479,0.00851086,63255.0,63254.0,1.3405411]
[1719850173717,0.00851086,63255.0,63254.0,1.6427261]
[1719850173920,0.00851086,63255.0,63254.0,1.6527261]
[1719850174037,0.00851086,63255.0,63254.0,1.6597261]
[1719850174254,0.00851086,63255.0,63254.0,1.6497261]
[1719850174625,0.00851086,63255.0,63254.0,1.6427261]
[1719850174825,0.00851086,63255.0,63254.0,1.78416691]
[1719850175327,0.00851086,63255.0,63254.0,1.79316468]
[1719850176117,0.00851086,63255.0,63254.0,1.78416468]
[1719850176320,0.00851086,63255.0,63254.0,1.6527261]
[1719850176528,0.00851086,63255.0,63254.0,1.79508124]
[1719850176734,0.00851086,63255.0,63254.0,1.44989624]
[1719850177104,0.00851086,63255.0,63254.0,1.46389624]
[1719850177307,0.00851086,63255.0,63254.0,1.47789624]
[1719850177507,0.00851086,63255.0,63254.0,1.46389624]
[1719850177729,0.00851086,63255.0,63254.0,1.47389624]
[1719850178157,0.00851086,63255.0,63254.0,1.79008124]
[1719850178354,0.00851086,63255.0,63254.0,1.79208124]
[1719850178841,0.00851086,63255.0,63254.0,1.80208124]
[1719850179316,0.00851086,63255.0,63254.0,2.00208124]
[1719850179509,0.00851086,63255.0,63254.0,2.13358124]
[1719850179721,0.00851086,63255.0,63254.0,2.13357024]
[1719850179858,0.0084,63261.0,63260.0,1.21872826]
[1719850180070,0.0084,63261.0,63260.0,1.68978624]
[1719850180906,0.0084,63261.0,63260.0,1.67978624]
[1719850181112,0.0084,63261.0,63260.0,1.68978624]
[1719850181407,0.0084,63261.0,63260.0,1.71778624]
[1719850181766,0.0084,63261.0,63260.0,1.80868624]
[1719850182094,0.0084,63261.0,63260.0,2.00868624]
[1719850182296,0.0084,63261.0,63260.0,2.32484124]
[1719850182493,0.0084,63261.0,63260.0,2.13384124]
[1719850182694,0.0084,63261.0,63260.0,2.0024211]
[1719850182894,0.0084,63261.0,63260.0,1.56777479]
[1719850183100,0.0084,63261.0,63260.0,1.79665091]
[1719850183653,0.0084,63261.0,63260.0,1.70975091]
[1719850183824,0.0084,63261.0,63260.0,1.69891271]
[1719850184327,0.0084,63261.0,63260.0,1.69693659]
[1719850184525,0.0084,63261.0,63260.0,1.72093659]
[1719850184758,0.0084,63261.0,63260.0,1.71093659]
[1719850184940,0.0084,63261.0,63260.0,1.69693659]
[1719850185139,0.0084,63261.0,63260.0,1.71093659]
[1719850185351,0.0084,63261.0,63260.0,1.71777479]
[1719850185756,0.0084,63261.0,63260.0,1.71766818]
[1719850186210,0.0084,63261.0,63260.0,0.90329029]
[1719850186347,0.0084,63261.0,63260.0,0.91329029]
[1719850186559,0.0084,63261.0,63260.0,0.91729534]
[1719850186768,0.0084,63261.0,63260.0,0.90329534]
[1719850186945,0.0084,63261.0,63260.0,0.91729534]
[1719850187144,0.0084,63261.0,63260.0,0.78587249]
[1719850187368,0.0084,63261.0,63260.0,0.77187249]
[1719850188085,0.0084,63261.0,63260.0,0.78387249]
[1719850188291,0.0084,63261.0,63260.0,0.78377139]
[1719850189193,0.0084,63261.0,63260.0,0.53359795]
[1719850190119,0.0084,63261.0,63260.0,0.55287139]
[1719850194351,0.0084,63261.0,63260.0,0.55277011]
[1719850194914,0.0084,63261.0,63260.0,0.3345298]
[1719850196229,0.1071,63261.0,63260.0,0.3345298]
[1719850196652,0.1071,63261.0,63260.0,0.3205298]
[1719850196978,0.1071,63261.0,63260.0,0.3145298]
[1719850197275,0.1071,63261.0,63260.0,0.51249667]
[1719850197660,0.1081,63261.0,63260.0,0.51249667]
[1719850197865,0.1071,63261.0,63260.0,0.52677011]
[1719850198273,0.1091,63261.0,63260.0,0.52677011]
[1719850198456,0.1091,63261.0,63260.0,0.3085298]
[1719850198855,0.1091,63261.0,63260.0,0.52677011]
[1719850199657,0.10920388,63261.0,63260.0,0.52677011]
[1719850200171,0.10820388,63261.0,63260.0,0.52677011]
[1719850200375,0.00950388,63261.0,63260.0,1.31715711]
[1719850200604,0.00950388,63261.0,63260.0,1.00100211]
[1719850200760,0.00950388,63261.0,63260.0,1.01100211]
[1719850200955,0.00950388,63261.0,63260.0,0.69484711]
[1719850201179,0.00850388,63261.0,63260.0,1.00100211]
[1719850201419,0.00850388,63261.0,63260.0,1.01200211]
[1719850201872,0.00850388,63261.0,63260.0,1.00200211]
[1719850202023,0.00850388,63261.0,63260.0,0.70684711]
[1719850202376,0.00850388,63261.0,63260.0,0.69484711]
[1719850202590,0.00850388,63261.0,63260.0,0.69584711]
[1719850202937,0.10960388,63261.0,63260.0,0.53777011]
[1719850203162,0.10960388,63261.0,63260.0,0.76867011]
[1719850203362,0.00850388,63261.0,63260.0,0.76867011]
[1719850203925,0.00850388,63261.0,63260.0,0.78267011]
[1719850204345,0.00850388,63261.0,63260.0,0.75767011]
[1719850204543,0.00850388,63261.0,63260.0,0.77067011]
[1719850204661,0.00850388,63261.0,63260.0,0.78367011]
[1719850205268,0.00850388,63261.0,63260.0,0.77067011]
[1719850205687,0.13540388,63261.0,63260.0,0.3325298]
[1719850205925,0.36731942,63261.0,63260.0,0.13263656]
[1719850206104,0.36731942,63261.0,63260.0,0.3325298]
[1719850206105,0.2488485,63261.0,63260.0,0.3325298]
[1719850206308,0.36734158,63261.0,63260.0,0.76239667]
[1719850206583,0.10330055,63261.0,63260.0,0.78167011]
[1719850207430,0.10330055,63261.0,63260.0,0.75767011]
[1719850207632,0.00850388,63261.0,63260.0,0.75767011]
[1719850207809,0.00850388,63261.0,63260.0,0.76567011]
[1719850208243,0.10330055,63261.0,63260.0,0.76659411]
[1719850208481,0.00850388,63261.0,63260.0,0.77259411]
[1719850208607,0.10330573,63261.0,63260.0,0.77259411]
[1719850208804,0.10330573,63261.0,63260.0,0.75332067]
[1719850209054,0.10330573,63261.0,63260.0,0.77259411]
[1719850209257,0.00850388,63261.0,63260.0,0.77259411]
[1719850210876,0.10330906,63261.0,63260.0,0.77259411]
[1719850212272,0.00850388,63261.0,63260.0,0.77259411]
[1719850212498,0.00850388,63261.0,63260.0,0.54169411]
[1719850212701,0.00850388,63261.0,63260.0,0.77259411]
[1719850213312,0.10780388,63261.0,63260.0,0.5543538]
[1719850213521,0.24000388,63261.0,63260.0,0.3234538]
[1719850213731,0.25314853,63261.0,63260.0,0.3234538]
[1719850213938,0.24000388,63261.0,63260.0,0.3234538]
[1719850214159,0.25314859,63261.0,63260.0,0.3234538]
[1719850215120,0.25314859,63261.0,63260.0,0.3094538]
[1719850215327,0.25314859,63261.0,63260.0,0.3134538]
[1719850215572,0.25314859,63261.0,63260.0,0.004924]
[1719850215821,0.25366639,63261.0,63260.0,0.004924]
[1719850216024,0.27315698,63261.0,63260.0,0.003924]
[1719850216456,0.27315698,63261.0,63260.0,0.004924]
[1719850216688,0.273161,63261.0,63260.0,0.004924]
[1719850216872,0.273161,63261.0,63260.0,0.003924]
[1719850217224,0.273161,63261.0,63260.0,0.000924]
[1719850217430,0.37314278,63261.0,63260.0,0.000924]
[1719850217642,0.37314278,63261.0,63260.0,0.002924]
[1719850218684,0.37314278,63261.0,63260.0,0.000924]
[1719850219042,0.37514278,63261.0,63260.0,0.000924]
[1719850219832,0.43509231,63261.0,63260.0,0.000924]
[1719850220157,0.43612544,63261.0,63260.0,0.000924]
[1719850220452,0.43509231,63261.0,63260.0,0.000924]
[1719850220869,0.59507385,63261.0,63260.0,0.000924]
[1719850221061,0.435309,63261.0,63260.0,0.000924]
[1719850221267,0.59528557,63261.0,63260.0,0.000924]
[1719850221542,0.435309,63261.0,63260.0,0.000924]
[1719850221742,0.433309,63261.0,63260.0,0.000924]
[1719850222043,0.435309,63261.0,63260.0,0.001924]
[1719850222398,0.37714401,63261.0,63260.0,0.001924]
[1719850222799,0.37514401,63261.0,63260.0,0.000924]
[1719850223769,0.37314401,63261.0,63260.0,0.000924]
[1719850223992,0.37914401,63261.0,63260.0,0.001924]
[1719850224148,0.36799656,63261.0,63260.0,0.002924]
[1719850224508,0.38117309,63261.0,63260.0,0.002924]
[1719850225267,0.38065529,63261.0,63260.0,0.002924]
[1719850225466,0.37465529,63261.0,63260.0,0.001924]
[1719850225691,0.37317309,63261.0,63260.0,0.000924]
[1719850226088,0.37517309,63261.0,63260.0,0.001924]
[1719850226290,0.37917309,63261.0,63260.0,0.002924]
[1719850226466,0.37517309,63261.0,63260.0,0.001924]
[1719850226689,0.37317309,63261.0,63260.0,0.000924]
[1719850226891,0.37717309,63261.0,63260.0,0.001924]
[1719850227055,0.37917309,63261.0,63260.0,0.002924]
[1719850227257,0.34755481,63261.0,63260.0,0.002924]
[1719850227497,0.63145335,63261.0,63260.0,0.002924]
[1719850227741,0.71244193,63261.0,63260.0,0.002924]
[1719850227940,0.55255927,63261.0,63260.0,0.002924]
[1719850228919,0.54855927,63261.0,63260.0,0.001924]
[1719850229134,0.55055927,63261.0,63260.0,0.001924]
[1719850229465,0.54855927,63261.0,63260.0,0.001924]
[1719850229823,0.54855927,63261.0,63254.0,0.000924]
[1719850229824,0.09291437,63255.0,63254.0,0.000924]
[1719850230027,1.46756167,63255.0,63254.0,0.000924]
[1719850230375,1.58706681,63255.0,63254.0,0.000924]
[1719850230503,1.64855025,63255.0,63254.0,0.000924]
[1719850230705,1.66806795,63255.0,63254.0,0.000924]
[1719850230933,1.89466795,63255.0,63254.0,0.000924]
[1719850231280,2.03041906,63255.0,63254.0,0.000924]
[1719850231453,1.82708266,63255.0,63254.0,0.000924]
[1719850232232,1.82811579,63255.0,63254.0,0.000924]
[1719850232432,1.85308266,63255.0,63254.0,0.001924]
[1719850233372,2.07466666,63255.0,63254.0,0.002924]
[1719850233532,1.91488242,63255.0,63254.0,0.002924]
[1719850233727,1.90172373,63255.0,63254.0,0.002924]
[1719850233975,1.91487312,63255.0,63254.0,0.002924]
[1719850234130,1.82441766,63255.0,63254.0,0.002924]
[1719850234330,2.07468042,63255.0,63254.0,0.002924]
[1719850234661,1.91493006,63255.0,63254.0,0.002924]
[1719850236805,1.82441766,63255.0,63254.0,0.002924]
[1719850237007,1.91504031,63255.0,63254.0,0.002924]
[1719850238423,1.92044692,63255.0,63254.0,0.002924]
[1719850238696,1.97808316,63255.0,63254.0,0.002924]
[1719850238883,1.97911629,63255.0,63254.0,0.002924]
[1719850239401,2.13879311,63255.0,63254.0,0.002924]
[1719850239854,2.13775998,63255.0,63254.0,0.002924]
[1719850240082,1.90833055,63255.0,63254.0,0.002924]
[1719850240352,2.13925144,63255.0,63254.0,0.002924]
[1719850240563,1.97959217,63255.0,63254.0,0.002924]
[1719850240992,1.97969845,63255.0,63254.0,0.002924]
[1719850241775,1.97569845,63255.0,63254.0,0.001924]
[1719850242093,1.97969845,63255.0,63254.0,0.002924]
[1719850242505,1.97969845,63255.0,63254.0,0.001924]
[1719850242506,2.07208845,63255.0,63254.0,0.001924]
[1719850242922,2.24571492,63255.0,63254.0,0.002924]
[1719850243226,2.08608845,63255.0,63254.0,0.002924]
[1719850243433,2.07167702,63255.0,63254.0,0.001924]
[1719850243638,2.06767702,63255.0,63254.0,0.000924]
[1719850243836,2.09567702,63255.0,63254.0,0.001924]
[1719850244199,2.08167702,63255.0,63254.0,0.001924]
[1719850244618,2.09567702,63255.0,63254.0,0.001924]
[1719850244820,2.08167702,63255.0,63254.0,0.000924]
[1719850245196,2.08167702,63255.0,63254.0,0.00087223]
[1719850246411,2.24125581,63255.0,63254.0,0.00087223]
[1719850246646,2.24125581,63255.0,63254.0,0.00187223]
[1719850246647,2.24203012,63255.0,63254.0,0.00187223]
[1719850246875,2.25518074,63255.0,63254.0,0.00187223]
[1719850247085,2.25524263,63255.0,63254.0,0.00187223]
[1719850247282,2.09566351,63255.0,63254.0,0.00187223]
[1719850247575,2.24123513,63255.0,63254.0,0.00187223]
[1719850247840,2.08166351,63255.0,63254.0,0.00187223]
[1719850248013,2.09566351,63255.0,63254.0,0.00287223]
[1719850248849,2.26276351,63255.0,63254.0,0.00287223]
[1719850249051,2.71502751,63255.0,63254.0,0.00287223]
[1719850249205,2.75327028,63255.0,63254.0,0.00159719]
[1719850249405,2.78431875,63255.0,63254.0,0.00159719]
[1719850249857,2.78390559,63255.0,63254.0,0.00159719]
[1719850250054,2.62149312,63255.0,63254.0,0.00159719]
[1719850250249,2.26235035,63255.0,63254.0,0.00159719]
[1719850250568,2.24835035,63255.0,63254.0,0.001]
[1719850250797,0.0005178,63240.0,63239.0,0.1047]
[1719850251097,0.65729796,63240.0,63239.0,0.1047]
[1719850251298,0.75617077,63240.0,63239.0,0.1047]
[1719850251536,0.77045183,63240.0,63239.0,0.1047]
[1719850252106,0.77845183,63240.0,63239.0,0.1057]
[1719850252319,0.78745183,63240.0,63239.0,0.1067]
[1719850252490,0.80693007,63240.0,63239.0,0.1067]
[1719850253084,0.78745042,63240.0,63239.0,0.1067]
[1719850253217,0.80694832,63240.0,63239.0,0.1067]
[1719850253604,0.80694832,63240.0,63239.0,0.002]
[1719850254637,1.02934721,63240.0,63239.0,0.002]
[1719850254859,0.97825802,63240.0,63239.0,0.002]
[1719850255062,1.26468295,63240.0,63239.0,0.002]
[1719850255487,0.0005178,63225.0,63222.0,0.1218]
[1719850255707,0.09136344,63236.0,63222.0,0.1218]
[1719850255708,0.65616936,63224.0,63222.0,0.1218]
[1719850255917,0.65616936,63224.0,63220.0,0.0976]
[1719850255918,0.0005178,63221.0,63220.0,0.0976]
[1719850256132,0.0005178,63220.0,63217.0,0.1238]
[1719850256331,0.0005178,63217.0,63216.0,0.1057]
[1719850256543,0.01367177,63217.0,63216.0,0.1057]
[1719850256743,0.01367177,63217.0,63214.0,0.1286]
[1719850256744,0.0005178,63215.0,63214.0,0.1286]
[1719850256959,0.01315397,63215.0,63214.0,0.1286]
[1719850257143,0.02737062,63215.0,63214.0,0.1286]
[1719850257345,0.02737062,63215.0,63214.0,0.32756687]
[1719850257546,0.01421665,63215.0,63214.0,0.32756687]
[1719850257674,0.01421665,63215.0,63214.0,0.34684031]
[1719850257675,0.01315545,63215.0,63214.0,0.34684031]
[1719850257890,0.1,63218.0,63214.0,0.34684031]
[1719850257891,0.1,63218.0,63217.0,0.19896687]
[1719850258094,0.11315532,63218.0,63215.0,0.19896687]
[1719850258299,0.1,63218.0,63217.0,0.19896687]
[1719850258540,0.01964169,63221.0,63218.0,0.19896687]
[1719850258747,0.01315481,63220.0,63218.0,0.19896687]
[1719850258944,0.01964169,63221.0,63218.0,0.19896687]
[1719850259150,0.01315481,63220.0,63214.0,0.2343]
[1719850259359,0.0005178,63222.0,63214.0,0.2343]
[1719850259556,0.0005178,63220.0,63214.0,0.2343]
[1719850259758,0.1,63223.0,63215.0,0.19896687]
[1719850259935,0.1,63223.0,63214.0,0.2343]
[1719850259936,0.01315493,63222.0,63216.0,0.19896687]